bitfinex/quotes_SOLUSD_20260108
["timestamp","ask_amount","ask_price","bid_price","bid_amount"]
[1767886591707,0.28432314,134.87,134.81,0.6789552]
[1767886591908,8.98024512,134.86,134.82,0.6789552]
[1767886592108,8.98024512,134.84,134.82,0.6789552]
[1767886592411,39.49112088,134.87,134.81,0.71888387]
[1767886592612,8.98024512,134.86,134.82,0.71888387]
[1767886592812,13.54,134.87,134.83,0.71888387]
[1767886592991,8.98024512,134.86,134.83,0.71888387]
[1767886593192,8.98024512,134.87,134.83,0.71888387]
[1767886593612,8.98024512,134.86,134.83,0.71888387]
[1767886594204,8.98024512,134.85,134.83,0.71888387]
[1767886594800,8.98024512,134.86,134.83,0.71888387]
[1767886594998,16.39480408,134.87,134.83,0.71888387]
[1767886595601,16.39480408,134.87,134.79,16.67209728]
[1767886595602,8.98024512,134.84,134.79,16.67209728]
[1767886595804,16.39864274,134.8,134.79,16.67209728]
[1767886595986,0.28432314,134.87,134.8,0.71888387]
[1767886596312,8.98024512,134.84,134.8,0.71888387]
[1767886597390,8.98024512,134.84,134.79,43.3571535]
[1767886597590,8.98024512,134.83,134.79,16.67209728]
[1767886597795,8.98024512,134.81,134.79,16.67209728]
[1767886598616,7.41731706,134.82,134.79,16.67209728]
[1767886599114,8.98024512,134.83,134.8,0.71888387]
[1767886599513,8.98024512,134.82,134.8,0.71888387]
[1767886600312,8.98024512,134.81,134.8,0.71888387]
[1767886600505,8.98024512,134.81,134.79,16.67209728]
[1767886600912,7.41732178,134.82,134.79,16.67209728]
[1767886601227,8.98024512,134.81,134.79,17.39098115]
[1767886602300,8.98024512,134.81,134.75,18.75198733]
[1767886602301,16.39864274,134.8,134.77,0.71888387]
[1767886602500,8.98024512,134.79,134.77,0.71888387]
[1767886602902,8.98024512,134.83,134.8,0.71888387]
[1767886603209,7.41586773,134.85,134.8,0.71888387]
[1767886603599,16.39611285,134.85,134.81,0.71888387]
[1767886603804,7.41586773,134.85,134.81,0.71888387]
[1767886604004,16.39611285,134.85,134.81,0.71888387]
[1767886604618,8.98024512,134.84,134.81,0.71888387]
[1767886605202,8.98024512,134.85,134.82,0.71888387]
[1767886606020,8.98024512,134.85,134.8,0.71888387]
[1767886606021,0.13064692,134.85,134.8,0.71888387]
[1767886606222,8.98024512,134.83,134.8,0.71888387]
[1767886606526,16.39677431,134.84,134.8,0.71888387]
[1767886606917,7.41576439,134.85,134.81,0.71888387]
[1767886607122,8.98024512,134.85,134.81,0.71888387]
[1767886607427,8.98024512,134.87,134.83,0.71888387]
[1767886609113,16.39481221,134.87,134.83,0.71888387]
[1767886610713,8.98024512,134.85,134.81,0.71888387]
[1767886610930,8.98024512,134.85,134.77,43.77824421]
[1767886610931,8.98024512,134.82,134.77,0.71888387]
[1767886611108,8.98024512,134.82,134.78,0.71888387]
[1767886611311,8.98024512,134.83,134.79,0.71888387]
[1767886611632,8.98024512,134.85,134.81,0.71888387]
[1767886612337,8.98024512,134.86,134.82,0.71888387]
[1767886612509,8.98024512,134.85,134.82,0.71888387]
[1767886612705,8.98024512,134.86,134.82,0.71888387]
[1767886613736,16.39481221,134.87,134.83,0.71888387]
[1767886613904,8.98024512,134.86,134.83,0.71888387]
[1767886614530,16.39481221,134.87,134.83,0.71888387]
[1767886614947,8.98024512,134.86,134.83,0.71888387]
[1767886615247,7.41371871,134.89,134.84,0.71888387]
[1767886615411,16.39396383,134.89,134.85,0.71888387]
[1767886616237,13.54,134.92,134.87,0.71888387]
[1767886616444,8.98024512,134.91,134.87,0.71888387]
[1767886616632,0.70407693,134.91,134.87,8.98024512]
[1767886616835,16.39225253,134.92,134.88,0.71888387]
[1767886617218,16.39149539,134.93,134.89,0.71888387]
[1767886617439,8.98024512,134.91,134.89,0.71888387]
[1767886617946,8.98024512,134.92,134.89,0.71888387]
[1767886618544,25.93937596,134.93,134.89,0.71888387]
[1767886618740,0.70992766,134.94,134.9,0.71888387]
[1767886618741,8.98024512,134.94,134.9,0.71888387]
[1767886619335,16.39120643,134.94,134.9,0.71888387]
[1767886619777,8.98024512,134.96,134.92,0.71888387]
[1767886620136,18.52348705,134.97,134.92,0.71888387]
[1767886620467,8.98024512,134.94,134.9,0.71888387]
[1767886621065,8.98024512,134.95,134.91,0.71888387]
[1767886621433,8.98024512,134.93,134.91,0.71888387]
[1767886621634,8.98024512,134.93,134.89,0.71888387]
[1767886622259,8.98024512,134.94,134.9,0.71088074]
[1767886623255,8.98024512,134.93,134.9,0.71088074]
[1767886623658,8.98024512,134.91,134.84,18.53994043]
[1767886623836,39.47780207,134.94,134.87,8.98024512]
[1767886624037,8.98024512,134.92,134.88,8.98024512]
[1767886624231,8.98024512,134.92,134.88,0.71088074]
[1767886624438,40.15139462,134.94,134.88,0.71088074]
[1767886624639,8.98024512,134.92,134.88,0.71088074]
[1767886625177,8.98024512,134.9,134.86,21.60731688]
[1767886625341,8.98024512,134.91,134.88,0.65269507]
[1767886625651,7.41217377,134.92,134.88,0.65269507]
[1767886625652,16.39241889,134.92,134.88,0.65269507]
[1767886625858,7.41147011,134.93,134.88,8.06667252]
[1767886626056,8.98024512,134.91,134.88,0.65269507]
[1767886627170,8.98024512,134.92,134.88,0.65269507]
[1767886627744,122.22297737,134.96,134.89,0.65269507]
[1767886627949,19.22297737,134.96,134.91,0.65269507]
[1767886628265,0.68753269,134.91,134.86,0.65269507]
[1767886628464,8.98024512,134.89,134.84,8.06856028]
[1767886628654,8.98024512,134.89,134.85,0.65269507]
[1767886628849,0.14156605,134.9,134.84,16.39611033]
[1767886628850,8.98024512,134.9,134.87,0.65269507]
[1767886629172,13.54,134.93,134.87,0.65269507]
[1767886629173,8.98024512,134.91,134.87,8.06699392]
[1767886629352,22.52024512,134.93,134.89,0.65269507]
[1767886629671,8.98024512,134.94,134.9,0.65269507]
[1767886629964,16.39058921,134.95,134.9,9.63294019]
[1767886630167,8.98024512,134.94,134.9,0.65269507]
[1767886630350,7.41034409,134.95,134.9,0.65269507]
[1767886630745,8.98024512,134.94,134.9,0.65269507]
[1767886631555,7.41034409,134.95,134.91,0.65269507]
[1767886631772,16.39058921,134.95,134.91,0.65269507]
[1767886632068,8.98024512,134.94,134.91,0.65269507]
[1767886632552,12.94158015,134.94,134.91,0.65269507]
[1767886632866,5.53084362,134.93,134.89,0.65269507]
[1767886633072,12.94158015,134.94,134.9,0.65269507]
[1767886634049,5.53084362,134.94,134.9,8.06558976]
[1767886634449,13.63428424,134.95,134.9,13.59643338]
[1767886634645,12.94123673,134.95,134.91,0.65269507]
[1767886635269,103.69867429,134.97,134.92,0.65269507]
[1767886635487,13.54,134.98,134.94,0.65269507]
[1767886635663,26.47939674,134.98,134.94,0.65269507]
[1767886636278,5.53084362,134.97,134.94,0.65269507]
[1767886636759,13.63767945,134.99,134.94,13.59418172]
[1767886636960,5.53084362,134.98,134.94,6.18353869]
[1767886637163,32.05796418,135.01,134.94,6.18353869]
[1767886637164,12.93844654,135.0,134.96,6.18353869]
[1767886637359,26.47793897,135.01,134.97,6.18353869]
[1767886637550,0.2,135.02,134.94,39.47743279]
[1767886637757,0.2,135.02,134.99,5.53084362]
[1767886638160,0.2,135.02,134.96,13.54]
[1767886638361,0.2,135.02,134.98,5.53084362]
[1767886638576,0.2,135.02,134.98,12.93917169]
[1767886639080,0.2,135.02,134.98,5.53084362]
[1767886639471,5.53084362,135.01,134.97,0.65269507]
[1767886639676,5.53084362,135.0,134.97,0.65269507]
[1767886639876,5.53084362,134.99,134.95,0.65269507]
[1767886640070,5.53084362,134.98,134.93,27.13459612]
[1767886640270,5.53084362,134.98,134.94,8.06328705]
[1767886640575,5.53084362,134.98,134.93,19.07084362]
[1767886640576,7.40905386,134.97,134.92,8.06430874]
[1767886640779,5.53084362,134.97,134.93,0.65269507]
[1767886641577,5.74089105,134.98,134.93,6.18353869]
[1767886641877,5.53084362,134.98,134.95,0.65269507]
[1767886642066,5.53084362,134.97,134.94,0.65269507]
[1767886642272,0.20037799,134.99,134.94,0.65269507]
[1767886642578,5.53084362,134.97,134.94,0.65269507]
[1767886643281,5.53084362,134.98,134.95,0.65269507]
[1767886643777,5.53084362,135.01,134.97,0.65269507]
[1767886644880,0.2,135.02,134.99,0.65269507]
[1767886645061,0.2,135.02,134.99,6.18353869]
[1767886645387,0.2,135.02,135.0,0.65269507]
[1767886645573,0.2,135.02,135.0,0.59269507]
[1767886645979,0.2,135.02,135.0,6.12353869]
[1767886646175,0.2,135.02,135.0,0.59269507]
[1767886647182,0.2,135.02,134.98,7.40845418]
[1767886647377,0.2,135.02,134.98,12.9392978]
[1767886647582,0.2,135.02,134.99,0.65269507]
[1767886647880,0.2,135.02,135.0,0.65269507]
[1767886648657,5.73084362,135.05,135.01,0.65269507]
[1767886648860,0.2,135.05,135.01,6.18353869]
[1767886649062,5.73084362,135.05,135.01,0.65269507]
[1767886649262,5.53084362,135.04,134.99,13.59110093]
[1767886649465,5.53084362,135.02,134.99,0.65269507]
[1767886650300,5.53084362,135.01,134.97,8.06156045]
[1767886650982,5.98607335,135.02,134.98,0.65269507]
[1767886651184,5.98607335,135.02,134.98,0.59269507]
[1767886651362,13.39240935,135.02,134.98,0.59269507]
[1767886651564,5.53084362,135.01,134.98,0.59269507]
[1767886651792,13.39240935,135.02,134.98,0.59269507]
[1767886652084,12.93723391,135.02,134.98,0.59269507]
[1767886652267,6.04488529,135.01,134.97,7.40883595]
[1767886652472,5.53084362,134.99,134.95,7.40980081]
[1767886652778,5.53084362,134.98,134.94,7.41051638]
[1767886653101,5.53084362,134.98,134.94,8.06374035]
[1767886653892,8.09980204,135.0,134.95,0.65322397]
[1767886654060,5.53084362,135.0,134.96,0.65322397]
[1767886654265,12.93825137,135.0,134.96,0.65322397]
[1767886655789,5.53084362,134.99,134.95,7.4101072]
[1767886655986,5.53084362,134.99,134.95,8.06333117]
[1767886656195,13.62867278,135.0,134.95,13.59417479]
[1767886656576,5.53084362,135.01,134.97,0.65322397]
[1767886656968,7.40596779,135.03,134.98,0.65322397]
[1767886657168,13.62839638,135.04,135.0,0.65322397]
[1767886658479,6.0512095,135.01,134.96,0.65322397]
[1767886658675,5.53084362,135.01,134.97,13.59280199]
[1767886658877,0.2,135.05,135.01,0.65322397]
[1767886659074,13.82594956,135.05,135.0,5.53084362]
[1767886659275,5.53084362,135.04,134.99,27.1118421]
[1767886659470,5.53084362,135.04,134.99,27.0518421]
[1767886659670,13.82594956,135.05,135.0,13.59136215]
[1767886660392,13.82594956,135.05,135.0,0.65322397]
[1767886660595,6.0512095,135.04,135.0,6.18406759]
[1767886660990,7.60468453,135.05,135.0,6.18406759]
[1767886660991,13.13552815,135.05,135.01,0.65322397]
[1767886661496,0.2,135.05,135.03,6.18406759]
[1767886661967,0.2,135.05,135.04,6.18406759]
[1767886662173,13.13401183,135.08,135.04,0.65322397]
[1767886662596,0.2,135.08,135.05,0.65322397]
[1767886663488,0.2,135.08,135.05,6.18406759]
[1767886664595,7.6030734,135.08,135.05,5.53084362]
[1767886664801,7.6030734,135.08,135.03,21.5787507]
[1767886664802,6.22300011,135.07,135.03,0.65322397]
[1767886665503,7.6030734,135.08,135.03,6.18406759]
[1767886665679,13.13391702,135.08,135.03,13.58970406]
[1767886665877,13.13391702,135.08,135.04,5.53084362]
[1767886666101,13.82607351,135.08,135.04,5.53084362]
[1767886666486,13.82607351,135.08,135.03,6.18406759]
[1767886666686,6.22300011,135.07,135.02,12.93691662]
[1767886666888,6.22300011,135.07,135.03,6.18406759]
[1767886667090,6.22300011,135.07,135.03,13.58978571]
[1767886667312,6.22300011,135.07,135.03,6.18406759]
[1767886667497,6.22300011,135.07,135.02,7.4060867]
[1767886667804,6.22300011,135.07,135.02,5.53084362]
[1767886667985,13.62701057,135.07,135.02,5.53084362]
[1767886668402,13.13411717,135.08,135.03,6.18406759]
[1767886668703,0.2,135.08,135.05,5.53084362]
[1767886669002,13.1340504,135.08,135.04,6.18406759]
[1767886669199,13.82620689,135.08,135.04,0.65322397]
[1767886669396,13.82620689,135.08,135.03,6.18406759]
[1767886669777,8.29536327,135.08,135.03,6.18406759]
[1767886669982,13.82620689,135.08,135.04,5.53084362]
[1767886670284,8.29536327,135.08,135.04,6.18406759]
[1767886670486,8.29536327,135.08,135.04,13.58917614]
[1767886670487,0.89215649,135.08,135.04,13.58917614]
[1767886671510,13.82606122,135.08,135.04,6.18406759]
[1767886671802,13.82606122,135.08,135.04,5.53084362]
[1767886672101,13.82606122,135.08,135.05,6.18406759]
[1767886672102,0.2,135.08,135.05,6.18406759]
[1767886672308,1e-08,135.08,135.06,6.18406759]
[1767886672484,1e-08,135.08,135.07,6.12406759]
[1767886672684,1e-08,135.08,135.07,0.65322397]
[1767886672879,1e-08,135.08,135.07,6.18406759]
[1767886673386,1e-08,135.08,135.06,5.53084362]
[1767886673607,1e-08,135.08,135.06,6.18406759]
[1767886674003,1e-08,135.08,135.06,0.65322397]
[1767886674316,1e-08,135.08,135.07,5.53084362]
[1767886674486,1e-08,135.08,135.07,12.93441214]
[1767886675691,1e-08,135.08,135.07,13.58763611]
[1767886676078,0.69215649,135.12,135.08,0.65322397]
[1767886676283,27.14349263,135.13,135.08,6.18406759]
[1767886676810,19.74300011,135.13,135.09,12.93331604]
[1767886677185,14.21215649,135.13,135.09,13.58654001]
[1767886677393,0.2,135.14,135.1,6.18406759]
[1767886678009,0.2,135.14,135.11,0.65322397]
[1767886678215,0.2,135.14,135.11,6.18406759]
[1767886678503,6.42300011,135.14,135.09,13.58654001]
[1767886678704,0.69215649,135.13,135.09,13.58654001]
[1767886678894,6.22300011,135.13,135.09,13.58654001]
[1767886679490,0.69215649,135.13,135.09,13.58654001]
[1767886679689,0.2,135.14,135.1,6.18406759]
[1767886679884,0.69215649,135.12,135.09,7.40247242]
[1767886680084,5.53084362,135.13,135.09,12.93331604]
[1767886680485,5.53084362,135.13,135.09,13.58654001]
[1767886680709,0.89215649,135.14,135.1,0.65322397]
[1767886680908,6.42300011,135.14,135.1,0.65322397]
[1767886681206,6.42300011,135.14,135.04,0.65322397]
[1767886681207,0.69215649,135.1,135.04,0.65322397]
[1767886681386,0.69215649,135.1,135.05,0.65322397]
[1767886681805,6.22300011,135.1,135.05,6.18406759]
[1767886681991,5.53084362,135.11,135.06,6.18406759]
[1767886682189,6.2040039,135.13,135.09,0.65322397]
[1767886682515,6.2040039,135.12,135.07,6.24613001]
[1767886682807,6.2040039,135.12,135.08,12.93385621]
[1767886683216,6.2040039,135.12,135.08,13.6491426]
[1767886683895,13.60490758,135.12,135.08,6.24613001]
[1767886684211,0.87316028,135.14,135.1,0.71528639]
[1767886684509,0.67316028,135.12,135.08,13.64899048]
[1767886684713,5.53084362,135.13,135.08,13.64899048]
[1767886685110,0.2,135.14,135.12,0.66629903]
[1767886685409,0.2,135.14,135.13,4.8262133]
[1767886685410,0.9114132,135.14,135.13,4.8262133]
[1767886685608,0.2,135.14,135.13,5.49251233]
[1767886686014,0.2,135.14,135.13,0.66629903]
[1767886686186,0.2,135.14,135.11,6.19714265]
[1767886686515,0.2,135.14,135.12,6.19714265]
[1767886686710,7.3980944,135.17,135.13,6.19714265]
[1767886687209,12.92861727,135.18,135.14,6.19714265]
[1767886687385,7.69477365,135.18,135.14,6.19714265]
[1767886687585,8.10832771,135.2,135.16,5.53084362]
[1767886687888,18.48904038,135.22,135.17,5.53084362]
[1767886687889,12.92680547,135.21,135.17,5.53084362]
[1767886688089,7.39596185,135.21,135.17,6.19714265]
[1767886688389,12.92634394,135.22,135.18,0.66629903]
[1767886689112,12.92717959,135.21,135.17,0.66629903]
[1767886689292,13.12429787,135.22,135.17,0.66629903]
[1767886689495,7.39559394,135.22,135.18,6.19714265]
[1767886689697,12.92643756,135.22,135.18,6.19714265]
[1767886689895,5.53084362,135.22,135.18,6.19714265]
[1767886690102,13.12583471,135.23,135.18,6.19714265]
[1767886690616,7.59484935,135.23,135.19,6.19714265]
[1767886691011,13.12569297,135.23,135.19,6.13714265]
[1767886691212,0.2,135.23,135.19,13.53412898]
[1767886691705,0.2,135.23,135.2,5.53084362]
[1767886692711,0.2,135.23,135.2,8.94694951]
[1767886693098,0.2,135.23,135.2,9.61324854]
[1767886693503,0.2,135.23,135.21,8.94694951]
[1767886693716,0.2,135.23,135.2,9.61324854]
[1767886694900,9.21311534,135.21,135.16,0.66629903]
[1767886695215,9.21311534,135.21,135.17,0.66629903]
[1767886695394,8.94694951,135.19,135.15,9.61324854]
[1767886695596,8.94694951,135.16,135.12,9.61324854]
[1767886695813,8.94694951,135.15,135.12,0.66629903]
[1767886696218,0.27887049,135.15,135.09,0.66629903]
[1767886696599,8.94694951,135.13,135.09,0.66629903]
[1767886696925,8.94694951,135.13,135.1,0.66629903]
[1767886697213,16.34742993,135.13,135.1,0.66629903]
[1767886697422,8.94694951,135.13,135.08,17.01626759]
[1767886697919,8.94694951,135.13,135.09,8.06871234]
[1767886698415,8.94694951,135.13,135.09,0.66629903]
[1767886699116,8.94694951,135.13,135.09,8.0687702]
[1767886699896,9.63256679,135.14,135.09,17.01571971]
[1767886700094,21.61043561,135.16,135.1,0.66629903]
[1767886700334,8.94694951,135.18,135.14,9.61324854]
[1767886700501,0.70255882,135.17,135.14,8.67809513]
[1767886700705,0.70255882,135.17,135.13,8.94694951]
[1767886701006,0.70255882,135.17,135.14,8.94694951]
[1767886703036,8.94694951,135.17,135.13,0.66629903]
[1767886703237,8.94694951,135.17,135.13,9.61324854]
[1767886703537,8.94694951,135.17,135.09,17.01548962]
[1767886703538,9.06060956,135.14,135.09,17.01548962]
[1767886703738,8.94694951,135.13,135.09,8.06854011]
[1767886704407,8.94694951,135.13,135.09,17.01548962]
[1767886705321,8.94694951,135.13,135.1,0.66629903]
[1767886705518,7.39881912,135.16,135.12,0.66629903]
[1767886705824,31.99595325,135.17,135.13,0.66629903]
[1767886705825,13.5,135.17,135.13,0.66629903]
[1767886706026,22.44694951,135.17,135.13,9.61324854]
[1767886706209,8.94694951,135.17,135.13,0.66629903]
[1767886706406,16.34511004,135.17,135.13,0.66629903]
[1767886707309,16.34511004,135.17,135.12,16.34767314]
[1767886707310,8.94694951,135.16,135.11,17.01447601]
[1767886707925,8.94694951,135.15,135.09,0.66629903]
[1767886708128,8.94694951,135.14,135.1,17.015153]
[1767886708317,8.94694951,135.15,135.1,17.015153]
[1767886708518,16.45618794,135.13,135.08,0.66629903]
[1767886708724,16.34689622,135.14,135.1,9.61324854]
[1767886709653,16.34689622,135.14,135.1,0.66629903]
[1767886710128,8.94694951,135.11,135.06,0.66629903]
[1767886710324,8.94694951,135.1,135.06,0.66629903]
[1767886710499,9.53953736,135.11,135.06,17.01734893]
[1767886710700,14.10255882,135.13,135.07,8.06982609]
[1767886710922,8.94694951,135.11,135.07,8.06982609]
[1767886711329,8.94694951,135.11,135.07,0.66629903]
[1767886711529,25.89928073,135.14,135.09,9.61324854]
[1767886711707,16.34723528,135.13,135.09,0.66629903]
[1767886712312,16.34723528,135.13,135.09,9.61324854]
[1767886712721,8.94694951,135.12,135.09,0.66629903]
[1767886713513,16.34723528,135.13,135.09,0.66629903]
[1767886713713,16.34723528,135.13,135.09,9.61324854]
[1767886714237,16.34723528,135.13,135.09,0.66629903]
[1767886714413,8.94694951,135.12,135.09,0.66629903]
[1767886714826,16.94037618,135.12,135.07,17.01989093]
[1767886715128,16.34777918,135.12,135.09,0.66963118]
[1767886715339,16.34777918,135.12,135.08,0.66963118]
[1767886716044,8.94694951,135.11,135.06,0.66963118]
[1767886716236,8.94694951,135.1,135.06,0.66963118]
[1767886716540,8.94694951,135.11,135.07,0.66963118]
[1767886716722,29.84785969,135.12,135.08,0.66963118]
[1767886717522,29.94685969,135.12,135.07,17.02003281]
[1767886718047,29.94685969,135.12,135.06,7.40393105]
[1767886718048,0.10398523,135.1,135.06,7.40393105]
[1767886718246,0.10398523,135.1,135.06,16.35088056]
[1767886718445,8.94694951,135.11,135.06,17.02051174]
[1767886719357,9.05093474,135.09,135.04,0.66963118]
[1767886719515,9.05093474,135.09,135.05,7.4046636]
[1767886719720,16.95101677,135.11,135.06,8.94694951]
[1767886720030,22.44694951,135.12,135.07,9.61658069]
[1767886720224,22.54594951,135.12,135.07,9.61658069]
[1767886720844,21.00003697,135.12,135.08,8.94694951]
[1767886721043,13.5,135.12,135.09,0.66963118]
[1767886721250,7.39942094,135.15,135.11,9.61658069]
[1767886721865,13.52,135.17,135.13,8.94694951]
[1767886722151,16.44432856,135.17,135.12,9.61658069]
[1767886723154,16.44432856,135.17,135.12,17.01726521]
[1767886723951,16.44432856,135.17,135.13,8.94694951]
[1767886724454,8.94694951,135.16,135.12,9.61658069]
[1767886724827,16.44432856,135.17,135.12,9.61658069]
[1767886725450,8.94694951,135.15,135.1,8.07137185]
[1767886725748,8.94694951,135.12,135.08,8.07233801]
[1767886725948,8.94694951,135.12,135.09,0.66963118]
[1767886726147,8.94694951,135.11,135.07,0.66963118]
[1767886726341,0.58775068,135.12,135.07,8.07315937]
[1767886726538,16.93572242,135.12,135.07,17.02010888]
[1767886727049,8.94694951,135.11,135.07,9.61658069]
[1767886727543,8.94694951,135.11,135.07,17.01993182]
[1767886728049,8.94694951,135.11,135.07,0.66963118]
[1767886728223,8.94694951,135.1,135.07,0.66963118]
[1767886728629,16.34888221,135.1,135.07,0.66963118]
[1767886729934,16.34888221,135.1,135.05,0.66963118]
[1767886729935,8.94694951,135.08,135.05,0.66963118]
[1767886730248,8.94694951,135.07,135.03,0.66963118]
[1767886730545,8.94694951,135.06,135.03,0.66963118]
[1767886731167,8.94694951,135.05,135.01,0.66963118]
[1767886731344,8.94694951,135.04,135.0,0.66963118]
[1767886731551,0.57380912,135.06,135.0,8.0768228]
[1767886731749,8.94694951,135.04,135.0,8.0768228]
[1767886731937,8.94694951,135.04,135.0,17.02377231]
[1767886732132,8.94694951,135.04,135.0,0.66963118]
[1767886732341,8.94694951,135.04,135.0,9.61658069]
[1767886732636,16.35228055,135.04,135.0,0.66963118]
[1767886733060,8.94694951,135.04,135.0,17.02386832]
[1767886733252,8.94694951,135.04,135.0,9.61658069]
[1767886733448,7.4048859,135.05,135.0,17.02397918]
[1767886733646,0.56934565,135.04,134.98,17.02494669]
[1767886733866,8.94694951,135.01,134.97,0.66963118]
[1767886734038,8.94694951,135.0,134.97,0.66963118]
[1767886734236,8.94694951,135.01,134.97,0.66963118]
[1767886734565,8.94694951,135.01,134.97,8.07854774]
[1767886734949,14.08497101,135.02,134.97,17.02549725]
[1767886735146,23.03192052,135.02,134.97,17.02549725]
[1767886735354,13.52,135.02,134.99,0.66963118]
[1767886735561,29.87248432,135.04,134.99,9.61658069]
[1767886735757,13.52,135.04,135.01,0.66963118]
[1767886736265,22.46694951,135.04,135.01,0.66963118]
[1767886737265,9.05582077,135.02,134.97,7.40889093]
[1767886737466,8.94694951,135.01,134.96,17.02579824]
[1767886737642,8.94694951,135.02,134.98,0.66963118]
[1767886738781,13.52,135.04,134.99,0.66963118]
[1767886739079,8.94694951,135.01,134.97,0.66963118]
[1767886739372,8.94694951,135.0,134.97,0.66963118]
[1767886740184,8.94694951,135.01,134.97,0.66963118]
[1767886740687,7.4048207,135.05,135.0,0.66963118]
[1767886740979,29.87126181,135.06,135.02,9.61658069]
[1767886741183,8.94694951,135.05,135.0,17.02370576]
[1767886741539,22.46694951,135.06,135.01,0.66963118]
[1767886741752,29.87063822,135.07,135.02,9.61658069]
[1767886741965,8.94694951,135.05,135.02,0.66963118]
[1767886742176,8.94694951,135.05,135.0,17.02386964]
[1767886742177,9.05093474,135.05,135.0,17.02386964]
[1767886742473,8.94694951,135.04,135.0,17.02386964]
[1767886743068,8.94694951,135.04,135.0,8.07692013]
[1767886743573,13.52,135.05,135.02,0.70212079]
[1767886743753,16.35123335,135.06,135.02,0.70212079]
[1767886743754,8.94694951,135.06,135.03,0.70212079]
[1767886743953,8.94694951,135.07,135.03,0.70212079]
[1767886744448,8.94694951,135.05,135.01,0.70212079]
[1767886744662,8.94694951,135.04,135.0,8.10942098]
[1767886744876,8.94694951,135.05,135.01,0.70212079]
[1767886745064,8.94694951,135.06,135.02,0.70212079]
[1767886745386,16.35122652,135.06,135.02,0.70212079]
[1767886746266,29.9697163,135.07,135.02,9.6490703]
[1767886746457,29.9697163,135.07,135.03,8.94694951]
[1767886746794,13.619,135.07,135.03,8.94694951]
[1767886746950,13.52,135.07,135.04,8.94694951]
[1767886747273,16.95223095,135.09,135.04,8.94694951]
[1767886747661,8.94694951,135.08,135.03,17.00689177]
[1767886748348,9.05582077,135.04,134.98,7.40818943]
[1767886748551,8.94694951,135.03,135.0,0.65453956]
[1767886748757,8.94694951,135.04,135.0,9.60148907]
[1767886748969,22.46694951,135.05,135.01,7.40655933]
[1767886749284,8.94694951,135.06,135.02,17.00770358]
[1767886749651,13.52,135.08,135.05,0.65453956]
[1767886749852,29.86999228,135.08,135.05,0.65453956]
[1767886750247,16.34999228,135.08,135.05,0.65453956]
[1767886750446,8.94694951,135.07,135.03,0.65453956]
[1767886750667,8.94694951,135.04,135.01,0.65453956]
[1767886750861,8.94694951,135.03,135.01,0.65453956]
[1767886751063,8.91694952,135.03,135.01,0.65453956]
[1767886751254,8.94694951,135.04,135.01,0.65453956]
[1767886752185,8.94694951,135.03,135.0,8.06178686]
[1767886752676,5.52354782,135.03,135.0,0.65453956]
[1767886753079,5.52354782,135.03,135.0,8.06193467]
[1767886753467,5.52354782,135.04,135.0,8.06193467]
[1767886753987,7.40486979,135.05,135.01,0.65453956]
[1767886754151,5.52354782,135.06,135.02,0.65453956]
[1767886754359,13.52,135.08,135.03,6.17808738]
[1767886754665,26.44657772,135.08,135.04,0.65453956]
[1767886754882,20.9230299,135.08,135.04,13.58327617]
[1767886755053,0.099,135.07,135.04,12.92873661]
[1767886755248,0.099,135.07,135.04,5.52354782]
[1767886755882,0.099,135.07,135.04,12.92870621]
[1767886756078,12.9260396,135.09,135.04,12.92870621]
[1767886756260,12.9260396,135.09,135.05,5.52354782]
[1767886756261,0.099,135.08,135.05,5.52354782]
[1767886756462,5.62254782,135.09,135.04,13.58324577]
[1767886756680,5.52354782,135.08,135.04,0.65453956]
[1767886756879,5.52354782,135.08,135.04,6.17808738]
[1767886757781,5.52354782,135.08,135.04,0.65453956]
[1767886757956,5.52354782,135.05,135.01,8.06116534]
[1767886758153,5.52354782,135.06,135.02,13.5842744]
[1767886758358,5.52354782,135.07,135.03,0.65453956]
[1767886758558,19.04354782,135.08,135.04,0.65453956]
[1767886758797,26.44685011,135.08,135.04,0.65453956]
[1767886759160,13.52,135.08,135.05,0.65453956]
[1767886759396,12.92560513,135.1,135.06,0.65453956]
[1767886759569,21.49401315,135.11,135.06,0.65453956]
[1767886759907,5.52354782,135.1,135.07,0.65453956]
[1767886761200,12.92556579,135.1,135.06,5.52354782]
[1767886761408,12.92556579,135.1,135.05,13.58262066]
[1767886761585,12.92556579,135.1,135.06,0.65453956]
[1767886761785,5.52354782,135.1,135.06,8.0586421]
[1767886762090,5.52354782,135.11,135.07,13.58151876]
[1767886762479,19.04354782,135.12,135.08,0.65453956]
[1767886762695,19.04354782,135.12,135.09,0.65453956]
[1767886762696,13.52,135.12,135.09,0.65453956]
[1767886762896,13.52,135.12,135.1,0.65453956]
[1767886763495,5.52354782,135.15,135.11,0.65453956]
[1767886763696,5.52354782,135.14,135.09,0.65453956]
[1767886763886,5.52354782,135.13,135.09,6.17808738]
[1767886764086,5.52354782,135.13,135.09,0.65453956]
[1767886764887,5.52354782,135.11,135.07,0.65453956]
[1767886765401,5.52354782,135.11,135.07,6.17808738]